bitfinex-derivatives/quotes_BTCF0:USTF0_20260127
["timestamp","ask_amount","ask_price","bid_price","bid_amount"]
[1769477222218,0.1129969,88511.0,88486.0,0.10184]
[1769477222422,0.39988,88512.0,88486.0,0.10184]
[1769477222717,0.1129969,88511.0,88486.0,0.10184]
[1769477222920,0.01131,88503.0,88488.0,0.001]
[1769477223120,0.011312,88491.0,88469.0,0.011315]
[1769477223323,0.113152,88491.0,88466.0,0.011315]
[1769477223712,0.113152,88491.0,88468.0,0.011315]
[1769477224220,0.113152,88491.0,88468.0,0.19501903]
[1769477224221,0.10184,88491.0,88468.0,0.19501903]
[1769477224521,0.11302053,88490.0,88468.0,0.011315]
[1769477224714,0.11302053,88490.0,88471.0,0.011314]
[1769477225016,0.11302053,88490.0,88472.0,0.00999464]
[1769477225319,0.11302053,88490.0,88474.0,0.00999464]
[1769477230421,0.11302053,88490.0,88475.0,0.011314]
[1769477231918,0.11302053,88490.0,88475.0,0.19501803]
[1769477232121,0.11302053,88490.0,88475.0,0.011314]
[1769477232817,0.11302053,88490.0,88475.0,0.19501803]
[1769477233020,0.11302053,88490.0,88478.0,0.011314]
[1769477233220,0.11302053,88490.0,88475.0,0.18370403]
[1769477233718,0.11302053,88490.0,88476.0,0.011314]
[1769477234222,0.11302053,88490.0,88477.0,0.18370403]
[1769477234420,0.11302053,88490.0,88476.0,0.0213387]
[1769477234722,0.11302053,88490.0,88482.0,0.18370403]
[1769477235222,0.11302053,88490.0,88485.0,0.18370403]
[1769477235425,0.11302053,88490.0,88484.0,0.18370403]
[1769477235721,0.10184,88491.0,88484.0,0.18370403]
[1769477235722,0.10184,88491.0,88489.0,0.18370403]
[1769477236025,0.09272285,88491.0,88490.0,0.18370403]
[1769477237022,0.00026326,88497.0,88490.0,0.18370403]
[1769477237218,0.00026326,88497.0,88493.0,0.18370403]
[1769477237419,0.00026326,88497.0,88487.0,0.18370403]
[1769477237420,0.11300648,88494.0,88487.0,0.18370403]
[1769477237624,0.00026326,88497.0,88488.0,0.18370403]
[1769477237825,0.00026326,88497.0,88487.0,0.18370403]
[1769477238019,0.11300648,88496.0,88487.0,0.18370403]
[1769477238324,0.00054624,88495.0,88491.0,0.18370403]
[1769477238514,0.00054624,88495.0,88488.0,0.18370403]
[1769477238922,0.11300456,88494.0,88492.0,0.18370403]
[1769477239122,0.11300456,88494.0,88488.0,0.18370403]
[1769477239629,0.11300456,88494.0,88493.0,0.18370403]
[1769477239829,0.11300456,88494.0,88490.0,0.18370403]
[1769477240315,0.11300456,88494.0,88493.0,0.18370403]
[1769477240516,0.11300456,88494.0,88490.0,0.18370403]
[1769477240931,0.11300456,88494.0,88493.0,0.18370403]
[1769477241122,0.10184,88501.0,88493.0,0.19352466]
[1769477241327,0.00053809,88507.0,88493.0,0.19352466]
[1769477241328,0.00053809,88507.0,88497.0,0.18370403]
[1769477241521,0.00053809,88507.0,88494.0,0.18370403]
[1769477241722,0.39988,88509.0,88494.0,0.18370403]
[1769477241723,0.00053809,88505.0,88494.0,0.18370403]
[1769477242119,0.00053809,88505.0,88496.0,0.18370403]
[1769477242339,0.11353307,88504.0,88496.0,0.18370403]
[1769477242529,0.11353307,88504.0,88489.0,0.00982063]
[1769477242832,0.00053809,88504.0,88494.0,0.18370403]
[1769477243128,0.39988,88509.0,88502.0,0.18370403]
[1769477243322,0.00134829,88507.0,88495.0,0.18370403]
[1769477243715,0.00134829,88507.0,88490.0,0.17286319]
[1769477243920,0.00134829,88507.0,88498.0,0.08051574]
[1769477244120,0.11299562,88506.0,88498.0,0.08051574]
[1769477244314,0.11299562,88506.0,88490.0,0.17286319]
[1769477244525,0.39988,88509.0,88499.0,0.08051574]
[1769477244727,0.11299626,88508.0,88497.0,0.08051574]
[1769477244914,0.39988,88509.0,88497.0,0.08051574]
[1769477245121,0.39988,88509.0,88501.0,0.08051574]
[1769477245422,0.11299115,88508.0,88498.0,0.08051574]
[1769477245623,0.11299115,88508.0,88494.0,0.00999124]
[1769477245830,0.11299115,88508.0,88500.0,0.08051574]
[1769477246327,0.11304796,88508.0,88503.0,0.08051574]
[1769477246522,0.11304796,88508.0,88494.0,0.00999124]
[1769477246523,0.11304796,88508.0,88500.0,0.08051574]
[1769477246921,0.11304796,88508.0,88503.0,0.08051574]
[1769477247124,0.11304796,88508.0,88500.0,0.08051574]
[1769477247320,5.681e-05,88507.0,88494.0,0.00999124]
[1769477247514,5.681e-05,88507.0,88501.0,0.08051574]
[1769477247922,0.11298924,88506.0,88494.0,0.00999124]
[1769477248131,0.11298924,88506.0,88501.0,0.08051574]
[1769477248430,0.11298924,88506.0,88502.0,0.08051574]
[1769477248632,0.11298924,88506.0,88501.0,0.08051574]
[1769477249126,0.11298924,88506.0,88494.0,0.00999124]
[1769477249325,0.11298924,88506.0,88502.0,0.08051574]
[1769477249631,0.11298924,88506.0,88501.0,0.08051574]
[1769477249837,0.11298924,88506.0,88502.0,0.08051574]
[1769477250224,0.11298924,88506.0,88505.0,0.08051574]
[1769477250420,0.11298924,88506.0,88494.0,0.00999124]
[1769477250733,0.11298924,88506.0,88502.0,0.07213795]
[1769477251129,0.11298924,88506.0,88505.0,0.07213795]
[1769477251323,0.11298924,88506.0,88502.0,0.07213795]
[1769477251728,0.11298924,88506.0,88505.0,0.07213795]
[1769477251928,0.11298924,88506.0,88502.0,0.07213795]
[1769477252830,0.11298924,88506.0,88505.0,0.07213795]
[1769477253031,0.11298924,88506.0,88503.0,0.07213795]
[1769477253632,0.11298924,88506.0,88505.0,0.07213795]
[1769477253828,0.11298924,88506.0,88503.0,0.07213795]
[1769477254136,0.00024777,88505.0,88491.0,0.0099174]
[1769477254726,0.1129886,88504.0,88491.0,0.0099174]
[1769477255129,0.00025596,88503.0,88486.0,0.10184]
[1769477255328,0.1129886,88504.0,88482.0,0.00991467]
[1769477255329,0.00025596,88497.0,88482.0,0.00991467]
[1769477259039,0.00047476,88504.0,88486.0,0.00984174]
[1769477259244,0.00047476,88504.0,88490.0,0.16327674]
[1769477259435,0.11300775,88500.0,88490.0,0.16327674]
[1769477259636,0.00047476,88504.0,88490.0,0.16327674]
[1769477259837,0.11300775,88503.0,88490.0,0.16327674]
[1769477260143,0.11300775,88503.0,88490.0,0.17311848]
[1769477261340,0.11300775,88503.0,88490.0,0.00984174]
[1769477261841,0.11300775,88503.0,88491.0,0.01007703]
[1769477262140,0.41119,88509.0,88491.0,0.01007703]
[1769477262634,0.11299818,88508.0,88491.0,0.01007703]
[1769477264438,0.11312098,88508.0,88491.0,0.01007703]
[1769477265241,0.0001228,88507.0,88491.0,0.01007703]
[1769477265936,0.11299498,88506.0,88491.0,0.01007703]
[1769477266137,0.11299498,88506.0,88493.0,0.00995906]
[1769477268144,0.39988,88509.0,88493.0,0.00995906]
[1769477268336,0.11299498,88508.0,88493.0,0.00995906]
[1769477273051,0.11338204,88508.0,88493.0,0.00995906]
[1769477274751,0.00039519,88507.0,88493.0,0.00995906]
[1769477275345,0.11299435,88506.0,88493.0,0.00995906]
[1769477276753,0.11305659,88506.0,88493.0,0.00995906]
[1769477277052,6.224e-05,88506.0,88493.0,0.00995906]
[1769477277441,0.11299498,88505.0,88493.0,0.00995906]
[1769477280455,0.39988,88509.0,88494.0,0.011312]
[1769477280649,0.39988,88509.0,88494.0,0.02142035]
[1769477280840,0.11299562,88508.0,88494.0,0.02142035]
[1769477281455,0.11299562,88508.0,88494.0,0.01010835]
[1769477281655,0.11299562,88508.0,88492.0,0.06994]
[1769477282045,0.01131,88507.0,88492.0,0.06994]
[1769477284257,0.39988,88509.0,88492.0,0.06994]
[1769477284654,0.11299498,88508.0,88492.0,0.06994]
[1769477290062,0.12430498,88508.0,88492.0,0.06994]
[1769477290961,0.11299498,88508.0,88492.0,0.06994]
[1769477293267,0.12430498,88508.0,88492.0,0.06994]
[1769477294261,0.11299498,88508.0,88492.0,0.06994]
[1769477295269,0.11299498,88508.0,88492.0,0.0806003]
[1769477295469,0.011311,88499.0,88492.0,0.06994]
[1769477295765,0.39988,88509.0,88492.0,0.06994]
[1769477295959,0.011311,88503.0,88492.0,0.06994]
[1769477296362,0.01131,88507.0,88492.0,0.06994]
[1769477296763,0.39988,88509.0,88492.0,0.06994]
[1769477296764,0.01131,88504.0,88492.0,0.06994]
[1769477296963,0.01131,88508.0,88492.0,0.06994]
[1769477297366,0.12430754,88508.0,88492.0,0.06994]
[1769477299462,0.11299754,88508.0,88492.0,0.06994]
[1769477300371,0.12430754,88508.0,88492.0,0.06994]
[1769477302071,0.12430754,88508.0,88490.0,0.16327674]
[1769477303267,0.12430754,88508.0,88488.0,0.01058611]
[1769477303268,0.11299754,88508.0,88488.0,0.01058611]
[1769477303769,0.11299754,88508.0,88484.0,0.01052942]
[1769477303969,0.11299754,88508.0,88481.0,0.19214473]
[1769477304676,0.011311,88502.0,88481.0,0.19214473]
[1769477305175,0.011311,88502.0,88481.0,0.20264616]
[1769477305367,0.11300137,88501.0,88482.0,0.01050143]
[1769477305879,0.11300137,88501.0,88484.0,0.01050143]
[1769477306270,0.01131,88505.0,88484.0,0.01050143]
[1769477306467,0.11300392,88504.0,88484.0,0.01050143]
[1769477306868,0.01131,88505.0,88484.0,0.01050143]
[1769477307077,0.11300392,88504.0,88484.0,0.01050143]
[1769477312679,0.01131,88503.0,88484.0,0.01050143]
[1769477313068,0.10184,88502.0,88484.0,0.01050143]
[1769477313277,0.21484201,88502.0,88484.0,0.01050143]
[1769477316775,0.427,88511.0,88495.0,0.01072141]
[1769477316979,0.10184,88510.0,88495.0,0.01072141]
[1769477317278,0.11300328,88508.0,88495.0,0.01072141]
[1769477317480,0.10184,88510.0,88495.0,0.01072141]
[1769477317679,0.11299115,88509.0,88495.0,0.01072141]
[1769477324894,0.01131,88508.0,88495.0,0.01072141]
[1769477325088,0.11299115,88509.0,88495.0,0.01072141]
[1769477325382,0.01131,88509.0,88495.0,0.01072141]
[1769477325583,0.12430179,88509.0,88484.0,0.01066369]
[1769477325882,0.01131,88505.0,88486.0,0.01066369]
[1769477326075,0.01131,88508.0,88488.0,0.01066369]
[1769477326276,0.10184,88510.0,88490.0,0.01066369]
[1769477326483,0.1129969,88507.0,88491.0,0.011312]
[1769477326878,0.10184,88510.0,88491.0,0.011312]
[1769477327086,0.1129969,88509.0,88491.0,0.011312]
[1769477327286,0.01131,88508.0,88490.0,0.01066369]
[1769477327486,0.1129969,88509.0,88490.0,0.02197569]
[1769477327686,0.10184,88510.0,88490.0,0.02197569]
[1769477327888,0.01131,88508.0,88490.0,0.02197569]
[1769477328588,0.11299562,88507.0,88487.0,0.011312]
[1769477328787,0.11299562,88507.0,88487.0,0.02200319]
[1769477329089,0.11299562,88507.0,88489.0,0.02200319]
[1769477329585,0.11299562,88507.0,88490.0,0.01069119]
[1769477329789,0.11299562,88507.0,88491.0,0.02200319]
[1769477330186,0.10184,88510.0,88491.0,0.011312]
[1769477330387,0.1129969,88509.0,88491.0,0.011312]
[1769477330688,0.10184,88510.0,88491.0,0.011312]
[1769477330878,0.11299562,88509.0,88491.0,0.011312]
[1769477332483,0.12430562,88509.0,88489.0,0.01068794]
[1769477333589,0.12430562,88509.0,88488.0,0.113152]
[1769477335495,0.11299562,88509.0,88490.0,0.011312]
[1769477335792,0.11299562,88509.0,88491.0,0.01069224]
[1769477336487,0.11299562,88509.0,88492.0,0.011312]
[1769477341896,0.11299562,88509.0,88489.0,0.02200822]
[1769477343486,0.11299562,88509.0,88490.0,0.0106984]
[1769477345298,0.11299562,88509.0,88491.0,0.011312]
[1769477347096,0.01131,88505.0,88486.0,0.10184]
[1769477347410,0.11299562,88509.0,88486.0,0.10184]
[1769477347411,0.01131,88509.0,88486.0,0.12384816]
[1769477347793,0.12431009,88509.0,88486.0,0.12384816]
[1769477350893,0.22615009,88509.0,88486.0,0.12384816]
[1769477353099,0.22615009,88509.0,88487.0,0.01054517]
[1769477355610,0.01131,88506.0,88487.0,0.01054517]
[1769477358009,0.11315,88509.0,88487.0,0.01054517]
[1769477358513,0.11299881,88508.0,88487.0,0.01054517]
[1769477360210,0.01131,88507.0,88487.0,0.01054517]
[1769477360412,0.01131,88507.0,88488.0,0.07476]
[1769477360911,0.11299818,88506.0,88488.0,0.07476]
[1769477361110,0.00790849,88513.0,88489.0,0.01057376]
[1769477361111,0.0035099,88513.0,88489.0,0.01057376]
[1769477361317,0.00904639,88532.0,88511.0,0.00914554]
[1769477361608,0.00604639,88532.0,88515.0,0.00914554]
[1769477361806,0.11903946,88532.0,88515.0,0.00914554]
[1769477362111,0.00604639,88532.0,88515.0,0.00914554]
[1769477362309,0.11299307,88531.0,88515.0,0.00914554]
[1769477362815,0.298,88535.0,88515.0,0.00914554]
[1769477363309,0.11296435,88534.0,88515.0,0.00914554]
[1769477363710,0.00904639,88533.0,88515.0,0.00914554]
[1769477364409,0.00904639,88531.0,88515.0,0.00914554]
[1769477364804,0.298,88535.0,88515.0,0.00914554]
[1769477365197,0.11088639,88536.0,88517.0,0.00914554]
[1769477365198,0.11296371,88534.0,88517.0,0.00914554]
[1769477365512,0.11088639,88536.0,88517.0,0.00914554]
[1769477365813,0.11088639,88536.0,88516.0,0.1018]
[1769477365814,0.1129618,88535.0,88521.0,0.00914554]
[1769477366012,0.10184,88536.0,88521.0,0.00914554]
[1769477366414,0.1129618,88535.0,88521.0,0.00914554]
[1769477367309,0.1129618,88535.0,88526.0,0.00914554]
[1769477370011,0.00904639,88540.0,88526.0,0.00914554]
[1769477370211,0.00904639,88538.0,88526.0,0.00914554]
[1769477370413,0.00904639,88538.0,88521.0,0.00914554]
[1769477370812,0.00904639,88536.0,88521.0,0.00914554]
[1769477371409,0.1129535,88535.0,88521.0,0.00914554]
[1769477372418,0.00904639,88534.0,88521.0,0.00914554]
[1769477372723,0.00904639,88534.0,88520.0,0.16315547]
[1769477373021,0.00904639,88534.0,88516.0,0.1018]
[1769477373223,0.011307,88533.0,88516.0,0.1018]
[1769477373409,0.00904639,88532.0,88516.0,0.1018]
[1769477374120,0.00904639,88532.0,88520.0,0.001]
[1769477374722,0.00904639,88532.0,88515.0,0.1018]
[1769477376020,0.011307,88531.0,88512.0,0.00914554]
[1769477376322,0.00904639,88528.0,88510.0,0.26495547]
[1769477377116,0.00904639,88528.0,88510.0,0.16315547]
[1769477377534,0.00904639,88523.0,88510.0,0.16315547]
[1769477379829,0.00904639,88523.0,88510.0,0.25343792]
[1769477381237,0.00904639,88523.0,88511.0,0.26003688]
[1769477381436,0.00904639,88523.0,88511.0,0.09028245]
[1769477383139,0.00904639,88523.0,88510.0,0.16315547]
[1769477383140,0.00904639,88521.0,88510.0,0.09028245]
[1769477383331,0.00904639,88519.0,88510.0,0.09028245]
[1769477383529,0.1018,88519.0,88505.0,0.0898715]
[1769477383725,0.1018,88519.0,88484.0,0.011313]
[1769477383726,0.01131,88510.0,88484.0,0.011313]
[1769477383928,0.01131,88507.0,88485.0,0.16977495]
[1769477384130,0.01131,88507.0,88486.0,0.45221495]
[1769477384426,0.00029546,88506.0,88487.0,0.45221495]
[1769477384637,0.00029546,88506.0,88488.0,0.16977495]
[1769477384933,0.00029546,88506.0,88489.0,0.16977495]
[1769477385133,0.00029546,88506.0,88484.0,0.21326897]
[1769477385134,0.00029546,88506.0,88490.0,0.16977495]
[1769477385329,0.00029546,88506.0,88484.0,0.22317048]
[1769477385526,0.00029546,88504.0,88485.0,0.28244]
[1769477385726,0.00029546,88494.0,88484.0,0.21326897]
[1769477386231,0.00029546,88494.0,88486.0,0.28244]
[1769477386739,0.00029546,88494.0,88487.0,0.28244]
[1769477386933,0.00029546,88494.0,88486.0,0.28244]
[1769477387338,0.00029546,88494.0,88487.0,0.28244]
[1769477387543,0.00029546,88494.0,88486.0,0.28244]
[1769477387842,0.00043106,88502.0,88486.0,0.28244]
[1769477388138,0.00043106,88501.0,88484.0,0.21326897]
[1769477388729,0.11300392,88500.0,88491.0,0.00970191]
[1769477389033,0.00089424,88508.0,88491.0,0.00970191]
[1769477389233,0.10269424,88519.0,88499.0,0.00970191]
[1769477389534,0.11300392,88511.0,88499.0,0.00970191]
[1769477390040,0.16393231,88519.0,88499.0,0.00970191]
[1769477390238,0.00089424,88518.0,88501.0,0.00970191]
[1769477390426,0.1138771,88518.0,88501.0,0.00970191]
[1769477392327,0.00063399,88517.0,88501.0,0.00970191]
[1769477392930,0.11298222,88516.0,88501.0,0.00970191]
[1769477395342,0.11298222,88516.0,88501.0,0.29214191]
[1769477395533,0.11298222,88516.0,88502.0,0.00982992]
[1769477395936,0.11298222,88516.0,88503.0,0.00982992]
[1769477396138,0.11349243,88516.0,88503.0,0.00982992]
[1769477396440,0.00051021,88516.0,88503.0,0.00982992]
[1769477396742,0.11298222,88515.0,88503.0,0.00982992]
[1769477397347,0.11298222,88515.0,88503.0,0.29226992]
[1769477397540,0.11298222,88515.0,88504.0,0.28244]
[1769477398045,0.11298222,88515.0,88505.0,0.28244]
[1769477398249,0.11298222,88515.0,88504.0,0.49570897]
[1769477398746,0.11298222,88515.0,88505.0,0.28244]
[1769477399243,0.11298222,88515.0,88506.0,0.28244]
[1769477399444,0.11298222,88515.0,88505.0,0.28244]
[1769477399836,0.11344706,88515.0,88506.0,0.28244]
[1769477400237,0.00046484,88514.0,88506.0,0.28244]
[1769477400433,0.01131,88509.0,88504.0,0.21267715]
[1769477400636,0.01131,88509.0,88494.0,0.00984505]
[1769477400848,0.011309,88513.0,88495.0,0.21267715]
[1769477401049,0.011309,88513.0,88495.0,0.22267714]
[1769477401343,0.01131,88508.0,88495.0,0.22267714]
[1769477401544,0.011309,88511.0,88495.0,0.21267715]
[1769477401941,0.11299243,88510.0,88495.0,0.21267715]
[1769477403144,0.11299243,88510.0,88486.0,0.5384]
[1769477403145,0.011311,88501.0,88478.0,0.01010167]
[1769477403344,0.01131,88504.0,88481.0,0.01010167]
[1769477403544,0.01131,88504.0,88483.0,0.01010167]
[1769477403749,0.1018,88507.0,88480.0,0.16315547]
[1769477403750,0.11300392,88503.0,88484.0,0.17308884]
[1769477403950,0.11300392,88503.0,88484.0,0.01010167]
[1769477404255,0.1018,88507.0,88484.0,0.01010167]
[1769477404448,0.12431392,88506.0,88485.0,0.21267715]
[1769477404643,0.01131,88506.0,88485.0,0.21267715]
[1769477404841,0.01131,88506.0,88485.0,0.22273777]
[1769477405147,0.01131,88504.0,88485.0,0.22273777]
[1769477405547,0.1018,88507.0,88485.0,0.21267715]
[1769477405854,0.011311,88496.0,88485.0,0.21267715]
[1769477406052,0.16315547,88500.0,88485.0,0.21267715]
[1769477406454,0.11300137,88499.0,88485.0,0.21267715]
[1769477407453,0.011311,88497.0,88485.0,0.21267715]
[1769477407661,0.011312,88494.0,88485.0,0.21267715]
[1769477407956,0.10184,88496.0,88477.0,0.05576]
[1769477408152,0.11300456,88493.0,88477.0,0.05576]
[1769477408349,0.10184,88496.0,88477.0,0.05576]
[1769477408659,0.11300456,88495.0,88477.0,0.05576]
[1769477408855,0.10184,88496.0,88477.0,0.05576]
[1769477409051,0.11317195,88496.0,88477.0,0.05576]
[1769477409258,0.11301158,88495.0,88477.0,0.05576]
[1769477409453,0.011312,88492.0,88477.0,0.05576]
[1769477409861,0.16315547,88490.0,88477.0,0.05576]
[1769477410751,0.11301222,88489.0,88477.0,0.05576]
[1769477411454,0.011313,88486.0,88477.0,0.05576]
[1769477413563,0.011312,88488.0,88477.0,0.05576]
[1769477414654,0.11301797,88487.0,88477.0,0.05576]
[1769477415656,0.11301797,88487.0,88478.0,0.01007884]
[1769477416058,0.011312,88493.0,88478.0,0.01007884]
[1769477416363,0.011312,88491.0,88478.0,0.01007884]
[1769477416754,0.11301414,88490.0,88478.0,0.01007884]
[1769477419155,0.11301414,88490.0,88477.0,0.05576]
[1769477419357,0.11301414,88490.0,88474.0,0.01008084]
[1769477419561,0.011312,88489.0,88474.0,0.01008084]
[1769477420262,0.011313,88487.0,88474.0,0.01008084]
[1769477420562,0.011313,88485.0,88474.0,0.01008084]
[1769477420765,0.23703081,88512.0,88473.0,0.00791206]
[1769477420766,0.16438491,88505.0,88476.0,0.00948294]
[1769477420965,0.16438491,88505.0,88473.0,0.00791206]
[1769477420966,0.11301925,88493.0,88490.0,0.17263841]
[1769477421156,0.00971541,88502.0,88490.0,0.00948294]
[1769477421355,0.00971541,88502.0,88490.0,0.17263841]
[1769477422062,0.11299945,88501.0,88490.0,0.17263841]
[1769477422666,0.11299945,88501.0,88490.0,0.00948294]
[1769477422862,0.11299945,88501.0,88490.0,0.17263841]
[1769477423567,0.11299945,88501.0,88490.0,0.00948294]
[1769477424264,0.11299945,88501.0,88490.0,0.17263841]
[1769477424464,0.11299945,88501.0,88491.0,0.00948294]
[1769477424760,0.16438491,88505.0,88491.0,0.00948294]
[1769477424761,0.17410032,88505.0,88491.0,0.00948294]
[1769477425261,0.11300009,88504.0,88491.0,0.00948294]
[1769477425467,0.1227155,88504.0,88491.0,0.00948294]
[1769477426456,0.00971541,88503.0,88491.0,0.00948294]
[1769477427073,0.11299754,88502.0,88491.0,0.00948294]
[1769477427273,0.12271295,88502.0,88491.0,0.00948294]
[1769477427665,0.00971541,88502.0,88491.0,0.00948294]
[1769477428072,0.11299881,88501.0,88491.0,0.00948294]
[1769477429864,0.11299881,88501.0,88489.0,0.07765]
[1769477431077,0.00971541,88500.0,88489.0,0.07765]
[1769477431678,0.11300073,88499.0,88489.0,0.07765]
[1769477432276,0.12431173,88499.0,88489.0,0.07765]
[1769477433176,0.11300073,88499.0,88489.0,0.07765]
[1769477437592,0.11300073,88499.0,88490.0,0.00948294]
[1769477437784,0.07300073,88499.0,88492.0,0.00948294]
[1769477438083,0.10184,88505.0,88492.0,0.00948294]
[1769477438581,0.11300201,88504.0,88492.0,0.00948294]
[1769477442386,0.12271742,88504.0,88492.0,0.00948294]
[1769477447186,0.11300201,88504.0,88492.0,0.00948294]
[1769477450192,0.12282055,88504.0,88492.0,0.00948294]
[1769477450391,0.12282055,88504.0,88489.0,0.07765]
[1769477450392,0.00981854,88503.0,88489.0,0.07765]
[1769477451191,0.11299945,88502.0,88489.0,0.07765]
[1769477451393,0.00981854,88501.0,88489.0,0.07765]
[1769477452892,0.00981854,88501.0,88489.0,0.08621895]
[1769477453190,0.00981854,88504.0,88490.0,0.00856895]
[1769477453585,0.00981854,88503.0,88490.0,0.00856895]
[1769477454188,0.00981854,88501.0,88489.0,0.07765]
[1769477461996,0.00981854,88501.0,88489.0,0.08630106]
[1769477463900,0.11165854,88506.0,88490.0,0.00865846]
[1769477464197,0.00981854,88503.0,88490.0,0.00865846]
[1769477465098,0.11299881,88502.0,88490.0,0.00865846]
[1769477467301,0.11299881,88502.0,88490.0,0.09885704]
[1769477469900,0.11299881,88502.0,88490.0,0.00865846]
[1769477473102,0.10184,88506.0,88490.0,0.00865846]
[1769477473293,0.11299945,88505.0,88490.0,0.00865846]
[1769477473494,0.00981854,88518.0,88498.0,0.00878321]
[1769477473693,0.11165854,88517.0,88500.0,0.00878321]
[1769477474399,0.11298413,88516.0,88500.0,0.00878321]
[1769477475894,0.12280267,88516.0,88500.0,0.00878321]
[1769477476194,0.00981854,88515.0,88500.0,0.00878321]
[1769477476800,0.12280267,88514.0,88500.0,0.00878321]
[1769477477200,0.00981854,88514.0,88500.0,0.00878321]
[1769477478798,0.00927361,88510.0,88493.0,0.09019858]
[1769477479006,0.10184,88517.0,88492.0,0.10184]
[1769477479007,0.00927361,88504.0,88492.0,0.10184]
[1769477481005,0.00956457,88502.0,88488.0,0.09019858]
[1769477481305,0.00956457,88502.0,88487.0,0.00876417]
[1769477482408,0.011311,88499.0,88486.0,0.09019858]
[1769477482603,0.00956457,88498.0,88485.0,0.09019858]
[1769477483311,0.00956457,88498.0,88486.0,0.08271]
[1769477484107,0.00956457,88498.0,88486.0,0.09133723]
[1769477486007,0.00956457,88502.0,88487.0,0.00866821]
[1769477489713,0.00956457,88502.0,88490.0,0.16328939]
[1769477490411,0.00956457,88502.0,88490.0,0.17203629]
[1769477490714,0.10184,88506.0,88491.0,0.00906707]
[1769477491105,0.11299945,88505.0,88491.0,0.00906707]
[1769477491305,0.11299945,88505.0,88496.0,0.00906707]
[1769477491508,0.00956457,88511.0,88496.0,0.00906707]
[1769477491812,0.21483945,88510.0,88500.0,0.16328939]
[1769477496516,0.21483945,88510.0,88500.0,0.17205791]
[1769477496915,0.21483945,88510.0,88501.0,0.00876852]
[1769477506324,0.21483945,88510.0,88500.0,0.16328939]
[1769477508927,0.00988828,88509.0,88497.0,0.00873182]
[1769477509131,0.00988828,88509.0,88495.0,0.10184]
[1769477511832,0.00988828,88509.0,88495.0,0.11055022]
[1769477513836,0.00988828,88509.0,88496.0,0.00871274]
[1769477518844,0.43648,88517.0,88492.0,0.09013274]
[1769477519044,0.00988828,88504.0,88490.0,0.26512939]
[1769477519349,0.00988828,88504.0,88491.0,0.0087436]
[1769477529739,0.00988828,88504.0,88491.0,0.1105436]
[1769477531856,0.00988828,88504.0,88492.0,0.00886744]
[1769477532354,0.00988828,88510.0,88492.0,0.00886744]
[1769477532744,0.00988828,88509.0,88492.0,0.00886744]
[1769477534861,0.00988828,88509.0,88491.0,0.1018]
[1769477535049,0.00988828,88507.0,88491.0,0.1018]
[1769477535246,0.00988828,88507.0,88492.0,0.09266]
[1769477535847,0.00988828,88507.0,88493.0,0.00895325]
[1769477536060,0.00988828,88507.0,88492.0,0.09266]
[1769477537062,0.00988828,88506.0,88492.0,0.09266]
[1769477544675,0.01131,88505.0,88492.0,0.09266]
[1769477544861,0.00974654,88504.0,88492.0,0.09266]
[1769477545466,0.01131,88503.0,88492.0,0.09266]
[1769477545676,0.00974654,88501.0,88481.0,0.1018]
[1769477545971,0.00974654,88501.0,88481.0,0.11115165]
[1769477546370,0.011311,88499.0,88481.0,0.11115165]
[1769477546677,0.00974654,88498.0,88481.0,0.11115165]
[1769477546971,0.00974654,88498.0,88482.0,0.00935165]
[1769477550375,0.01131,88506.0,88482.0,0.00935165]
[1769477550677,0.00974654,88501.0,88482.0,0.00935165]
[1769477553978,0.00974654,88501.0,88484.0,0.09017711]
[1769477554365,0.00974654,88501.0,88484.0,0.09952876]
[1769477557972,0.011311,88500.0,88484.0,0.09952876]
[1769477558173,0.00974654,88499.0,88484.0,0.09952876]
[1769477559984,0.00974654,88499.0,88484.0,0.00935165]
[1769477561585,0.02105754,88498.0,88484.0,0.00935165]
[1769477562987,0.00974654,88497.0,88484.0,0.00935165]
[1769477563786,0.011311,88498.0,88484.0,0.00935165]
[1769477563988,0.02105754,88498.0,88484.0,0.00935165]
[1769477564484,0.00974654,88497.0,88484.0,0.00935165]
[1769477565489,0.11300648,88496.0,88484.0,0.00935165]
[1769477570589,0.011312,88494.0,88484.0,0.00935165]
[1769477571281,0.02105754,88497.0,88484.0,0.00935165]
[1769477571791,0.0095826,88517.0,88491.0,0.00932512]
[1769477571985,0.0095826,88517.0,88483.0,0.09016082]
[1769477571986,0.10184,88520.0,88495.0,0.00932512]
[1769477572186,0.11300839,88509.0,88496.0,0.011311]
[1769477572389,0.0095826,88519.0,88497.0,0.00932512]
[1769477572784,0.0095826,88517.0,88497.0,0.00932512]
[1769477573485,0.0095826,88515.0,88497.0,0.00932512]
[1769477574193,0.11298541,88514.0,88497.0,0.00932512]
[1769477574792,0.11298541,88514.0,88497.0,0.02063612]
[1769477574992,0.11298541,88514.0,88498.0,0.00932512]
[1769477575195,0.11298541,88514.0,88499.0,0.011311]
[1769477575390,0.11298541,88514.0,88500.0,0.00932512]
[1769477575792,0.011308,88526.0,88500.0,0.00932512]
[1769477575793,9.2e-07,88553.0,88504.0,0.25346423]
[1769477575988,0.00999999,88569.0,88546.0,0.011305]
[1769477576187,0.00999999,88569.0,88549.0,0.011304]
[1769477576389,0.11295797,88564.0,88549.0,0.10146482]
[1769477576589,0.00999999,88569.0,88553.0,0.011304]
[1769477576893,0.01035368,88567.0,88553.0,0.011304]
[1769477577496,0.11291779,88566.0,88553.0,0.011304]
[1769477578291,0.01035368,88572.0,88556.0,0.011304]
[1769477579296,0.0104477,88570.0,88556.0,0.011304]
[1769477579895,0.11291269,88569.0,88556.0,0.011304]
[1769477581297,0.01043675,88568.0,88552.0,0.011304]
[1769477584898,0.01043675,88568.0,88544.0,0.10184]
[1769477585597,0.01046489,88566.0,88544.0,0.113145]
[1769477585788,0.01046489,88566.0,88550.0,0.011304]
[1769477586299,0.01046489,88566.0,88544.0,0.10184]
[1769477586701,0.10184,88575.0,88544.0,0.10184]
[1769477586702,0.01046908,88574.0,88544.0,0.10184]
[1769477587001,0.12338942,88574.0,88544.0,0.10184]
[1769477587189,0.01046908,88573.0,88554.0,0.011304]
[1769477587904,0.01046908,88571.0,88554.0,0.011304]
[1769477588503,0.12341429,88570.0,88554.0,0.011304]
[1769477588805,0.01049969,88570.0,88554.0,0.011304]
[1769477589203,0.1129146,88569.0,88554.0,0.011304]
[1769477589502,0.01049969,88568.0,88554.0,0.011304]
[1769477593407,0.01049969,88568.0,88558.0,0.011303]
[1769477593606,0.01049969,88568.0,88544.0,0.10184]
[1769477593607,3.5e-07,88593.0,88550.0,0.16330341]
[1769477593807,0.00789778,88633.0,88550.0,0.16330341]
[1769477593808,0.01049039,88623.0,88601.0,0.011298]
[1769477594002,0.01049039,88623.0,88600.0,0.011298]
[1769477594205,0.01049039,88621.0,88600.0,0.011298]